bitfinex/quotes_BTCUSD_20250530
["timestamp","ask_amount","ask_price","bid_price","bid_amount"]
[1748592560066,0.0562,105090.0,105080.0,0.0001473]
[1748592560529,0.0572,105090.0,105080.0,0.0001473]
[1748592560734,0.14825395,105090.0,105080.0,0.0001473]
[1748592560918,0.15012675,105090.0,105080.0,0.0001473]
[1748592561498,0.15012675,105090.0,105060.0,0.2971]
[1748592561499,0.0262,105080.0,105040.0,0.4108]
[1748592561697,0.051,105050.0,105040.0,0.00014703]
[1748592561955,0.031,105050.0,105040.0,0.00014703]
[1748592562727,0.031,105050.0,105040.0,0.00314703]
[1748592563159,0.031,105050.0,105040.0,0.00014703]
[1748592564339,0.032,105050.0,105040.0,0.00014703]
[1748592565352,0.032,105050.0,105040.0,0.00514703]
[1748592565760,0.001,105050.0,105040.0,0.00014703]
[1748592566554,0.0523,105050.0,105040.0,0.00014703]
[1748592567237,0.0523,105050.0,105040.0,0.29724703]
[1748592570208,0.0523,105050.0,105040.0,0.29452703]
[1748592573009,0.0275,105050.0,105030.0,0.00966501]
[1748592573226,0.0257,105040.0,105030.0,0.09105395]
[1748592574118,0.0257,105040.0,105030.0,0.09205395]
[1748592574413,0.026647,105050.0,105030.0,0.09205395]
[1748592574613,0.052347,105050.0,105040.0,0.00237981]
[1748592575027,0.000147,105050.0,105040.0,0.00237981]
[1748592576734,0.027047,105050.0,105040.0,0.00237981]
[1748592576947,0.001147,105050.0,105040.0,0.09343376]
[1748592577202,0.001147,105050.0,105040.0,0.09105395]
[1748592578599,0.001147,105050.0,105040.0,0.19329395]
[1748592578810,0.001147,105050.0,105040.0,0.09105395]
[1748592578949,0.001147,105050.0,105040.0,0.48782098]
[1748592579172,0.001147,105050.0,105040.0,0.53632098]
[1748592579912,0.000147,105050.0,105040.0,0.53632098]
[1748592580260,0.000147,105050.0,105040.0,0.51592098]
[1748592580868,0.000147,105050.0,105040.0,0.48982098]
[1748592584237,0.000147,105050.0,105040.0,0.77035598]
[1748592584675,0.000147,105050.0,105040.0,0.65468598]
[1748592584794,0.000147,105050.0,105040.0,0.85130098]
[1748592587622,0.000147,105050.0,105040.0,0.91130098]
[1748592587823,0.000147,105050.0,105040.0,0.61677395]
[1748592588867,0.000147,105050.0,105040.0,0.15305395]
[1748592589104,0.000147,105050.0,105040.0,0.56897395]
[1748592595006,0.000147,105050.0,105040.0,0.61597395]
[1748592595212,0.0517,105080.0,105050.0,0.854669]
[1748592595418,0.0258,105080.0,105060.0,0.1956728]
[1748592595634,0.1279522,105090.0,105060.0,0.1956728]
[1748592595855,0.12809945,105090.0,105060.0,0.1956728]
[1748592596083,0.0258,105080.0,105060.0,0.1956728]
[1748592596303,0.12809945,105090.0,105060.0,0.1956728]
[1748592596939,0.12809945,105090.0,105060.0,0.1966728]
[1748592597401,0.12809945,105090.0,105060.0,0.1976728]
[1748592598240,0.0263,105080.0,105060.0,0.1976728]
[1748592598680,0.0263,105080.0,105060.0,0.1966728]
[1748592599088,0.0263,105080.0,105060.0,0.1956728]
[1748592599499,0.0263,105080.0,105060.0,0.0944328]
[1748592599738,0.0511,105080.0,105070.0,0.1022]
[1748592599952,0.0511,105080.0,105070.0,0.19325395]
[1748592600567,0.0511,105080.0,105070.0,0.2125597]
[1748592600782,0.0511,105080.0,105070.0,0.01930575]
[1748592601223,0.07639945,105090.0,105060.0,0.1032]
[1748592601224,0.0509,105070.0,105060.0,0.1032]
[1748592601435,0.0509,105070.0,105060.0,0.19425395]
[1748592601649,0.0509,105070.0,105060.0,0.19325395]
[1748592602927,0.0519,105070.0,105060.0,0.1022]
[1748592603782,0.0519,105070.0,105060.0,0.12140022]
[1748592605687,0.0519,105070.0,105060.0,0.41850022]
[1748592608440,0.0519,105070.0,105060.0,0.31630022]
[1748592612029,0.0519,105070.0,105060.0,0.50955417]
[1748592612247,0.001,105070.0,105060.0,0.50955417]
[1748592613120,0.0485,105080.0,105060.0,0.50955417]
[1748592613326,0.0485,105080.0,105070.0,0.09105395]
[1748592615634,0.02464725,105090.0,105070.0,0.09343284]
[1748592615830,0.05104725,105090.0,105070.0,0.09343284]
[1748592615968,0.001,105080.0,105070.0,0.09343284]
[1748592616564,0.02464725,105090.0,105070.0,0.09343284]
[1748592616775,0.02464725,105090.0,105080.0,0.10457868]
[1748592616977,0.02464725,105090.0,105080.0,0.49035395]
[1748592616978,0.04904725,105090.0,105080.0,0.49035395]
[1748592617848,0.04904725,105090.0,105080.0,0.38815395]
[1748592618058,0.05004725,105090.0,105080.0,0.38815395]
[1748592618267,0.05004725,105090.0,105080.0,0.2971]
[1748592618464,0.04904725,105090.0,105080.0,0.2971]
[1748592618874,0.05004725,105090.0,105080.0,0.2971]
[1748592625560,0.1411012,105090.0,105080.0,0.2971]
[1748592626449,0.0496,105070.0,105060.0,0.01920022]
[1748592626871,0.0496,105080.0,105050.0,0.39926]
[1748592627078,0.0249,105060.0,105050.0,0.49031395]
[1748592627284,0.0501,105060.0,105050.0,0.49031395]
[1748592628570,0.0249,105060.0,105050.0,0.55031395]
[1748592628783,0.0249,105060.0,105050.0,0.57199534]
[1748592629002,0.05,105060.0,105050.0,0.46983534]
[1748592629219,0.05,105060.0,105050.0,0.57203534]
[1748592629638,0.05,105060.0,105050.0,0.47383534]
[1748592629851,0.05,105060.0,105050.0,0.57591534]
[1748592630078,0.05,105060.0,105050.0,0.51591534]
[1748592630721,0.05,105060.0,105050.0,0.32278139]
[1748592631599,0.05,105060.0,105050.0,0.31978139]
[1748592632015,0.05,105060.0,105050.0,0.32078139]
[1748592632434,0.05,105060.0,105050.0,0.31978139]
[1748592632638,0.05,105060.0,105050.0,0.31578139]
[1748592632850,0.051,105060.0,105050.0,0.31578139]
[1748592633081,0.001,105060.0,105050.0,0.40683534]
[1748592634968,0.001,105060.0,105050.0,0.45273534]
[1748592635391,0.1257522,105080.0,105050.0,0.45273534]
[1748592635595,0.1257522,105080.0,105060.0,0.19313395]
[1748592636007,0.1257522,105080.0,105060.0,0.49023395]
[1748592636218,0.1257522,105080.0,105060.0,0.48771395]
[1748592636435,0.0495,105080.0,105070.0,0.00237909]
[1748592636651,0.02554725,105090.0,105070.0,0.09343279]
[1748592636864,0.00014725,105090.0,105080.0,0.09343248]
[1748592637303,0.00014725,105090.0,105080.0,0.19551248]
[1748592637504,0.00014725,105090.0,105080.0,0.19313395]
[1748592638233,0.02424725,105090.0,105080.0,0.19313395]
[1748592639487,0.02524725,105090.0,105080.0,0.19313395]
[1748592639691,0.02624725,105090.0,105080.0,0.19313395]
[1748592641562,0.00214725,105090.0,105080.0,0.19313395]
[1748592641797,0.00214725,105090.0,105080.0,0.49023395]
[1748592642004,0.02754725,105090.0,105080.0,0.49023395]
[1748592643048,0.05304725,105090.0,105080.0,0.49023395]
[1748592647111,0.05304725,105090.0,105080.0,0.19313395]
[1748592648209,0.05304725,105090.0,105080.0,0.10208]
[1748592648375,0.00214725,105090.0,105080.0,0.10208]
[1748592648945,0.0508,105080.0,105070.0,0.10208]
[1748592649160,0.0508,105080.0,105070.0,0.50633395]
[1748592649565,0.0508,105080.0,105070.0,0.09105395]
[1748592649767,0.0508,105080.0,105070.0,0.50633395]
[1748592649990,0.0508,105080.0,105070.0,0.50733395]
[1748592650195,0.05014725,105090.0,105070.0,0.50733395]
[1748592650631,0.05014725,105090.0,105070.0,0.19413395]
[1748592650832,0.05014725,105090.0,105070.0,0.50729395]
[1748592651187,0.05014725,105090.0,105070.0,0.50829395]
[1748592651663,0.05014725,105090.0,105070.0,0.50729395]
[1748592652027,0.05014725,105090.0,105070.0,0.50629395]
[1748592652263,0.05014725,105090.0,105070.0,0.50729395]
[1748592652467,0.05014725,105090.0,105070.0,0.50829395]
[1748592652784,0.05014725,105090.0,105070.0,0.50839395]
[1748592653111,0.02564725,105090.0,105070.0,0.39025395]
[1748592653332,0.02564725,105090.0,105080.0,0.10204]
[1748592653664,0.05084725,105090.0,105080.0,0.10204]
[1748592654620,0.05184725,105090.0,105080.0,0.10204]
[1748592655672,0.05284725,105090.0,105080.0,0.10204]
[1748592657577,0.00214725,105090.0,105070.0,0.38825395]
[1748592657777,0.0499,105080.0,105070.0,0.80341395]
[1748592658647,0.0499,105080.0,105070.0,0.80337395]
[1748592658841,0.0499,105080.0,105070.0,0.80437395]
[1748592659052,0.0499,105080.0,105070.0,0.80537395]
[1748592659471,0.0499,105080.0,105070.0,0.80437395]
[1748592659703,0.0499,105080.0,105070.0,0.39025395]
[1748592659915,0.0499,105080.0,105070.0,0.80525395]
[1748592660332,0.0499,105080.0,105070.0,0.39025395]
[1748592660530,0.0499,105080.0,105070.0,0.80525395]
[1748592660740,0.0499,105080.0,105070.0,0.2992]
[1748592660882,0.0499,105080.0,105070.0,0.40112]
[1748592661490,0.0499,105080.0,105070.0,0.49217395]
[1748592661919,0.05064725,105090.0,105070.0,0.50167029]
[1748592662122,0.05064725,105090.0,105080.0,0.00237879]
[1748592662323,0.05064725,105090.0,105080.0,0.09343274]
[1748592662702,0.05064725,105090.0,105080.0,0.39053274]
[1748592662900,0.05064725,105090.0,105080.0,0.38815395]
[1748592663545,0.00014725,105090.0,105080.0,0.38815395]
[1748592663735,0.00014725,105090.0,105080.0,0.09105395]
[1748592664255,0.02564725,105090.0,105080.0,0.09105395]
[1748592665089,0.05054725,105090.0,105080.0,0.09105395]
[1748592665291,0.05154725,105090.0,105080.0,0.09105395]
[1748592666543,0.02764725,105090.0,105080.0,0.09105395]
[1748592666770,0.02764725,105090.0,105080.0,0.09115395]
[1748592667214,0.05394725,105090.0,105080.0,0.09115395]
[1748592667839,0.05394725,105090.0,105080.0,0.80313395]
[1748592668671,0.05394725,105090.0,105080.0,0.38825395]
[1748592668883,0.05394725,105090.0,105080.0,0.80313395]
[1748592669638,0.05394725,105090.0,105080.0,0.38825395]
[1748592669842,0.05394725,105090.0,105080.0,0.80309395]
[1748592670891,0.05394725,105090.0,105080.0,0.38825395]
[1748592671096,0.05394725,105090.0,105080.0,0.80309395]
[1748592671724,0.02764725,105090.0,105080.0,0.80309395]
[1748592671937,0.00214725,105090.0,105080.0,0.80309395]
[1748592672989,0.00214725,105090.0,105080.0,1.45620872]
[1748592673208,0.00214725,105090.0,105080.0,1.45292995]
[1748592673630,0.00214725,105090.0,105080.0,1.42773995]
[1748592673846,0.00214725,105090.0,105080.0,1.48773995]
[1748592674069,0.00114725,105090.0,105080.0,1.48773995]
[1748592674295,0.00014725,105090.0,105080.0,1.32071395]
[1748592674521,0.00014725,105090.0,105080.0,1.30398364]
[1748592674729,0.00014725,105090.0,105080.0,1.30498364]
[1748592674933,0.00014725,105090.0,105080.0,1.32608364]
[1748592675139,0.00014725,105090.0,105080.0,1.30498364]
[1748592675361,0.00014725,105090.0,105080.0,0.89118364]
[1748592675581,0.00014725,105090.0,105080.0,0.56648364]
[1748592675833,0.02444725,105090.0,105080.0,0.66599395]
[1748592676039,0.02444725,105090.0,105080.0,0.97887395]
[1748592676247,0.02444725,105090.0,105080.0,0.98087395]
[1748592677151,0.04874725,105090.0,105080.0,0.98087395]
[1748592677366,0.04874725,105090.0,105080.0,0.92087395]
[1748592677589,0.04874725,105090.0,105080.0,0.60799395]
[1748592678059,0.04874725,105090.0,105080.0,0.41506]
[1748592678275,0.04874725,105090.0,105080.0,0.0041]
[1748592679136,0.04874725,105090.0,105080.0,0.0021]
[1748592679345,0.04874725,105090.0,105080.0,0.0001]
[1748592679761,0.04874725,105090.0,105080.0,0.0011]
[1748592680198,0.141674,105090.0,105080.0,0.0011]
[1748592681267,0.145674,105090.0,105080.0,0.0011]
[1748592682121,0.145674,105090.0,105080.0,0.0001]
[1748592682339,0.15820794,105090.0,105080.0,0.0001]
[1748592682773,0.148674,105090.0,105080.0,0.0001]
[1748592684659,0.15832615,105090.0,105070.0,0.0001]
[1748592684886,0.24324675,105080.0,105070.0,0.0001]
[1748592685118,0.24137395,105080.0,105070.0,0.0001]
[1748592686710,0.24437395,105080.0,105070.0,0.0001]
[1748592688256,0.24637395,105080.0,105070.0,0.0001]
[1748592689556,0.17856159,105080.0,105070.0,0.0001]
[1748592689762,0.18043439,105080.0,105070.0,0.0001]
[1748592692390,0.22903439,105080.0,105070.0,0.0001]
[1748592692573,0.22716159,105080.0,105070.0,0.0001]
[1748592692834,0.23097059,105080.0,105070.0,0.0001]
[1748592694003,0.25018295,105080.0,105070.0,0.0001]
[1748592695498,0.14846295,105080.0,105070.0,0.0001]
[1748592695709,0.15033575,105080.0,105070.0,0.0001]
[1748592697659,0.14846295,105080.0,105070.0,0.0001]
[1748592698078,0.15033575,105080.0,105070.0,0.0001]
[1748592704210,0.0536,105080.0,105070.0,0.0001]
[1748592704443,0.005,105080.0,105070.0,0.0482]
[1748592704676,0.005,105080.0,105070.0,0.13925395]
[1748592705145,0.005,105080.0,105070.0,0.24097395]
[1748592705595,0.002,105080.0,105070.0,0.24097395]
[1748592705836,0.001,105080.0,105070.0,0.24097395]
[1748592706319,0.002,105080.0,105070.0,0.24097395]
[1748592706762,0.00302005,105090.0,105070.0,0.24097395]
[1748592709285,0.00302005,105090.0,105070.0,0.53807395]
[1748592709953,0.02742005,105090.0,105070.0,0.48997395]
[1748592710416,0.00302005,105090.0,105070.0,0.53857395]
[1748592710642,0.00114725,105090.0,105070.0,0.53857395]
[1748592711638,0.00114725,105090.0,105070.0,0.24147395]
[1748592711914,0.00114725,105090.0,105070.0,0.19287395]
[1748592712135,0.00114725,105090.0,105080.0,0.0491]
[1748592713040,0.00114725,105090.0,105070.0,0.24177395]
[1748592714181,0.02664725,105090.0,105070.0,0.21757395]
[1748592714433,0.00214725,105090.0,105070.0,0.24217395]
[1748592714868,0.00314725,105090.0,105070.0,0.24217395]
[1748592715093,0.00314725,105090.0,105080.0,0.09105395]
[1748592715094,0.00214725,105090.0,105080.0,0.09105395]
[1748592715316,0.00114725,105090.0,105080.0,0.1444329]
[1748592716571,0.00214725,105090.0,105080.0,0.1444329]
[1748592717400,0.00314725,105090.0,105080.0,0.1444329]
[1748592717844,0.00314725,105090.0,105080.0,0.14205395]
[1748592718058,0.00314725,105090.0,105080.0,0.09105395]
[1748592720178,0.02914725,105090.0,105080.0,0.09105395]
[1748592720848,0.05304725,105090.0,105070.0,0.0001]
[1748592721066,0.126625,105080.0,105070.0,0.0001]
[1748592721708,0.21767895,105080.0,105070.0,0.0001]
[1748592721918,0.21580615,105080.0,105070.0,0.0001]
[1748592723177,0.13955395,105080.0,105070.0,0.0001]
[1748592723423,0.14142675,105080.0,105070.0,0.0001]
[1748592726271,0.10643625,105090.0,105070.0,0.0001]
[1748592726272,0.00495625,105090.0,105070.0,0.0001]
[1748592726274,0.05565625,105090.0,105070.0,0.0001]
[1748592726502,0.0018728,105080.0,105070.0,0.38825395]
[1748592726750,0.00495625,105090.0,105070.0,0.43685395]
[1748592726960,0.00114725,105090.0,105070.0,0.43685395]
[1748592728040,0.00114725,105090.0,105080.0,0.09105395]
[1748592729573,0.00314725,105090.0,105080.0,0.09105395]
[1748592731538,0.02704725,105090.0,105080.0,0.09105395]
[1748592731820,0.05094725,105090.0,105070.0,0.2972]
[1748592732039,0.05094725,105090.0,105080.0,0.01]
[1748592732669,0.04994725,105090.0,105080.0,0.01]
[1748592734965,0.1420012,105090.0,105080.0,0.01]
[1748592735199,0.143874,105090.0,105080.0,0.01]
[1748592738037,0.153874,105090.0,105080.0,0.01]
[1748592738942,0.153874,105090.0,105080.0,0.0093]
[1748592740029,0.163874,105090.0,105080.0,0.0093]
[1748592740269,0.153874,105090.0,105080.0,0.0093]
[1748592740498,0.163174,105090.0,105080.0,0.0093]
[1748592740958,0.162174,105090.0,105080.0,0.0093]
[1748592741163,0.18019008,105090.0,105080.0,0.0093]
[1748592741377,0.18419008,105090.0,105080.0,0.0093]
[1748592741616,0.18819008,105090.0,105080.0,0.0093]
[1748592741836,0.18631728,105090.0,105080.0,0.0093]
[1748592742685,0.19758107,105090.0,105080.0,0.0093]
[1748592743550,0.0355,105070.0,105060.0,0.0001]
[1748592743759,0.56748675,105070.0,105060.0,0.0001]
[1748592743969,0.0507,105060.0,105050.0,0.0001]
[1748592744191,0.14175395,105060.0,105050.0,0.0001]
[1748592745306,0.14362675,105060.0,105050.0,0.0001]
[1748592745543,0.14662675,105060.0,105050.0,0.0001]
[1748592745753,0.14962675,105060.0,105050.0,0.0001]
[1748592753445,0.14775395,105060.0,105050.0,0.0001]
[1748592753669,0.24903395,105060.0,105050.0,0.0001]
[1748592754106,0.30601835,105060.0,105050.0,0.0001]
[1748592754330,0.24903395,105060.0,105050.0,0.0001]
[1748592756292,0.14775395,105060.0,105050.0,0.0001]
[1748592756503,0.25090675,105060.0,105050.0,0.0001]
[1748592756713,0.24903395,105060.0,105050.0,0.0001]
[1748592759817,0.25854312,105060.0,105050.0,0.0001]
[1748592765266,0.049,105050.0,105040.0,0.0001]
[1748592765469,0.14192675,105050.0,105040.0,0.0001]
[1748592766126,0.13940675,105050.0,105040.0,0.0001]
[1748592766537,0.14050013,105050.0,105040.0,0.0001]
[1748592767504,0.24178013,105050.0,105040.0,0.0001]
[1748592767711,0.13962733,105050.0,105040.0,0.0001]
[1748592767911,0.24278013,105050.0,105040.0,0.0001]
[1748592768126,0.24090733,105050.0,105040.0,0.0001]
[1748592769679,0.15087892,105050.0,105040.0,0.0001]
[1748592769887,0.25403172,105050.0,105040.0,0.0001]
[1748592770113,0.1644282,105050.0,105030.0,0.0001]
[1748592770317,0.24540675,105040.0,105030.0,0.0001]
[1748592770532,0.0512,105030.0,105000.0,0.0497]
[1748592770736,0.0018728,105020.0,105000.0,0.0497]
[1748592770978,0.11682675,105020.0,104990.0,0.2971]
[1748592771202,0.14162675,105020.0,104990.0,0.3457]
[1748592771825,0.14162675,105020.0,104990.0,0.35542132]
[1748592772042,0.14162675,105020.0,104990.0,0.30600779]
[1748592772043,0.0487,105010.0,104990.0,0.30600779]
[1748592772290,0.13975395,105010.0,105000.0,0.004]
[1748592772532,0.13975395,105010.0,104990.0,0.0486]
[1748592772533,0.09105395,105010.0,104990.0,0.0486]
[1748592772747,0.09105395,105010.0,104990.0,0.05751409]
[1748592773162,0.09105395,105010.0,104990.0,0.0486]
[1748592773395,0.11495395,105010.0,104990.0,0.0500903]
[1748592773613,0.11495395,105010.0,104990.0,0.05900449]
[1748592773826,0.11495395,105010.0,104990.0,0.0550903]
[1748592774047,0.11495395,105010.0,104990.0,0.0500903]
[1748592774274,0.0018728,105000.0,104990.0,0.0500903]
[1748592774499,0.0018728,105000.0,104990.0,0.0265903]
[1748592774944,0.0018728,105000.0,104990.0,0.03628053]
[1748592775160,0.0018728,105000.0,104990.0,0.03528053]
[1748592777639,0.0018728,105000.0,104990.0,0.0024903]
[1748592780394,0.0018728,105000.0,104990.0,0.0501903]
[1748592781501,0.16207316,105030.0,105000.0,0.0503]
[1748592781716,0.09105395,105020.0,105000.0,0.0503]
[1748592782842,0.0018728,105010.0,105000.0,0.0503]
[1748592783065,0.0018728,105010.0,105000.0,0.1]
[1748592784632,0.0028728,105010.0,105000.0,0.1]
[1748592785506,0.0038728,105010.0,105000.0,0.1]
[1748592789189,0.002,105010.0,105000.0,0.1503]
[1748592789604,0.0038728,105010.0,105000.0,0.1503]
[1748592790252,0.0038728,105010.0,105000.0,0.1]
[1748592790896,0.0281728,105010.0,105000.0,0.1]
[1748592791106,0.14442675,105010.0,105000.0,0.1]
[1748592797060,0.14255395,105010.0,105000.0,0.1]
[1748592797280,0.14442675,105010.0,105000.0,0.1]
[1748592798596,0.1556781,105010.0,105000.0,0.1]
[1748592800751,0.17062997,105010.0,105000.0,0.1]
[1748592800956,0.1536781,105010.0,105000.0,0.1]
[1748592801167,0.1566781,105010.0,105000.0,0.1]
[1748592801384,0.1872671,105010.0,105000.0,0.1]
[1748592801848,0.1872671,105010.0,104990.0,0.0004903]
[1748592801849,0.1377671,105010.0,104990.0,0.0004903]
[1748592802064,0.24226675,105000.0,104990.0,0.0004903]
[1748592802282,0.24039395,105000.0,104990.0,0.0004903]
[1748592802711,0.2516453,105000.0,104990.0,0.0004903]
[1748592802973,0.24039395,105000.0,104990.0,0.0004903]
[1748592804298,0.2516453,105000.0,104990.0,0.0004903]
[1748592805157,0.28216392,105000.0,104990.0,0.0004903]
[1748592805363,0.6630453,105000.0,104990.0,0.0004903]
[1748592806430,0.6730453,105000.0,104960.0,0.0238]
[1748592806638,0.0485,104980.0,104960.0,0.000147]
[1748592806854,0.0018728,104970.0,104960.0,0.000147]
[1748592807702,0.0018728,104970.0,104960.0,0.003147]
[1748592807916,0.0018728,104970.0,104960.0,0.000147]
[1748592808150,0.0018728,104970.0,104960.0,0.003147]
[1748592808367,0.0018728,104970.0,104960.0,0.006147]
[1748592808540,0.0018728,104970.0,104960.0,0.055847]
[1748592809247,0.0018728,104970.0,104960.0,0.030547]
[1748592809901,0.0018728,104970.0,104960.0,0.054947]
[1748592810337,0.0018728,104970.0,104960.0,0.030547]
[1748592810587,0.06103756,105000.0,104970.0,0.0507]
[1748592810800,0.09105395,105000.0,104990.0,0.0507]
[1748592811014,0.6382522,105020.0,104990.0,0.0507]
[1748592811234,0.09292675,105010.0,104990.0,0.0255]
[1748592811460,0.21808675,105010.0,104980.0,0.0489]
[1748592811675,0.19181395,105010.0,104990.0,0.0489]
[1748592812113,0.0018728,105000.0,104980.0,0.051]
[1748592813855,0.0028728,105000.0,104980.0,0.051]
[1748592814075,0.0028728,105000.0,104980.0,0.025]
[1748592814493,0.0028728,105000.0,104980.0,0.0491]
[1748592814918,0.0287728,105000.0,104970.0,0.0507]
[1748592815129,0.14382675,105000.0,104970.0,0.0507]
[1748592816040,0.24458675,105000.0,104970.0,0.0507]
[1748592816250,0.24458675,105000.0,104970.0,0.001]
[1748592816251,0.0253,104990.0,104970.0,0.001]
[1748592816467,0.0018728,104980.0,104970.0,0.002]
[1748592817123,0.0018728,104980.0,104970.0,0.001]
[1748592817781,0.0018728,104980.0,104970.0,0.002]
[1748592818016,0.0018728,104980.0,104970.0,0.001]
[1748592819646,0.0018728,104980.0,104970.0,0.002]
[1748592822184,0.21847895,104980.0,104970.0,0.002]
[1748592822401,0.21660615,104980.0,104970.0,0.002]
[1748592822612,0.14035395,104980.0,104970.0,0.002]
[1748592822822,0.09105395,104980.0,104970.0,0.002]
[1748592823036,0.19181395,104980.0,104970.0,0.002]
[1748592823263,0.0253,104990.0,104970.0,0.002]
[1748592823475,0.19181395,104990.0,104970.0,0.0518]
[1748592823900,0.09105395,104990.0,104970.0,0.0518]
[1748592824109,0.0018728,104980.0,104970.0,0.002]
[1748592824323,0.0018728,104980.0,104970.0,0.001]
[1748592824957,0.0018728,104980.0,104970.0,0.002]
[1748592825404,0.0258728,104980.0,104970.0,0.001]
[1748592825613,0.11692675,104980.0,104970.0,0.002]
[1748592825813,0.11692675,104980.0,104970.0,0.001]
[1748592826249,0.11692675,104980.0,104970.0,0.002]
[1748592826250,0.14262675,104980.0,104970.0,0.002]
[1748592828858,0.09292675,104980.0,104970.0,0.002]
[1748592829918,0.09292675,104980.0,104970.0,0.0021]
[1748592830128,0.11862675,104980.0,104970.0,0.0021]
[1748592831378,0.14362675,104980.0,104970.0,0.0021]
[1748592832235,0.14122675,104980.0,104970.0,0.0021]
[1748592836519,0.09052675,104980.0,104970.0,0.0021]
[1748592836737,0.54718136,105000.0,104970.0,0.051]
[1748592836963,0.09105395,104990.0,104970.0,0.051]
[1748592837167,0.41148,105000.0,104980.0,0.024]
[1748592837397,0.60329395,105000.0,104980.0,0.0494]
[1748592837851,0.65059395,105000.0,104970.0,0.0515]
[1748592838091,0.65059395,105000.0,104970.0,0.0505]
[1748592839891,0.11465395,104990.0,104970.0,0.0505]
[1748592840579,0.11465395,104990.0,104970.0,0.0515]
[1748592841023,0.11465395,104990.0,104970.0,0.0505]
[1748592841756,0.11465395,104990.0,104970.0,0.0515]
[1748592842237,0.09105395,104990.0,104970.0,0.0515]
[1748592842739,0.11545395,104990.0,104970.0,0.0275]
[1748592842976,0.13985395,104990.0,104970.0,0.0021]
[1748592849463,0.24029395,104990.0,104970.0,0.0021]
[1748592852167,0.13985395,104990.0,104970.0,0.0021]
[1748592852390,0.24029395,104990.0,104970.0,0.0021]
[1748592852646,0.13985395,104990.0,104970.0,0.0021]
[1748592852885,0.24029395,104990.0,104970.0,0.0021]
[1748592858018,0.21589395,104990.0,104970.0,0.0021]
[1748592858225,0.0235,104980.0,104970.0,0.0021]
[1748592858856,0.0478,104980.0,104970.0,0.0021]
[1748592859314,0.0478,104980.0,104970.0,0.0011]
[1748592860204,0.24069395,104990.0,104970.0,0.0011]
[1748592860428,0.24069395,104990.0,104970.0,0.0021]
[1748592861499,0.24069395,104990.0,104970.0,0.0011]
[1748592861937,0.24069395,104990.0,104970.0,0.0021]
[1748592862082,0.24069395,104990.0,104970.0,0.0011]
[1748592862516,0.19149395,104990.0,104970.0,0.0021]
[1748592862708,0.0507,104980.0,104970.0,0.0021]
[1748592863706,0.0507,104980.0,104970.0,0.0011]
[1748592863950,0.24129395,104990.0,104970.0,0.0011]
[1748592864136,0.24129395,104990.0,104970.0,0.0021]
[1748592864464,0.14085395,104990.0,104970.0,0.0021]
[1748592864654,0.24129395,104990.0,104970.0,0.0021]
[1748592865158,0.21559395,104990.0,104970.0,0.0011]
[1748592865307,0.0247,104980.0,104970.0,0.0011]
[1748592865507,0.0505,104980.0,104970.0,0.0021]
[1748592866014,0.0505,104980.0,104970.0,0.0001]
[1748592866222,0.0505,104980.0,104970.0,0.0021]
[1748592866437,0.0505,104980.0,104970.0,0.0011]
[1748592866841,0.21519395,104990.0,104970.0,0.0011]
[1748592867051,0.0245,104980.0,104970.0,0.0011]
[1748592867254,0.059352,105000.0,104970.0,0.053]
[1748592867459,0.09105395,105000.0,104980.0,0.0509]
[1748592867640,0.70344101,105010.0,104980.0,0.0509]
[1748592867841,0.77954309,105010.0,104980.0,0.0509]
[1748592868676,0.76828195,105010.0,104980.0,0.0509]
[1748592868905,0.77955213,105010.0,104980.0,0.0509]
[1748592869105,0.75505213,105010.0,104980.0,0.0509]
[1748592869308,0.0241,105000.0,104980.0,0.0509]
[1748592869776,0.13885395,105000.0,104970.0,0.3469]
[1748592870503,0.13985395,105000.0,104970.0,0.3469]
[1748592872130,0.13985395,105000.0,104970.0,0.3479]
[1748592872740,0.13885395,105000.0,104970.0,0.3479]
[1748592873077,0.13885395,105000.0,104970.0,0.3489]
[1748592874862,0.13885395,105000.0,104970.0,0.0518]
[1748592875066,0.0237,104990.0,104970.0,0.0518]
[1748592875273,0.0456,104990.0,104970.0,0.0268]
[1748592875492,0.0456,104990.0,104970.0,0.0021]
[1748592875925,0.0456,104990.0,104970.0,0.0001]
[1748592876130,0.0456,104990.0,104970.0,0.0021]
[1748592882261,0.0254,104980.0,104970.0,0.0021]
[1748592883130,0.0479,104980.0,104970.0,0.0011]
[1748592883551,0.0479,104980.0,104970.0,0.0021]
[1748592884168,0.0479,104980.0,104970.0,0.0011]
[1748592884375,0.0479,104980.0,104970.0,0.0021]
[1748592887136,0.070788,104990.0,104970.0,0.0021]
[1748592887367,0.16184195,104990.0,104970.0,0.0021]
[1748592888278,0.16184195,104990.0,104970.0,0.0001]
[1748592888496,0.16184195,104990.0,104970.0,0.0021]
[1748592890560,0.070788,104990.0,104970.0,0.0021]
[1748592890787,0.14232,104990.0,104970.0,0.0461]
[1748592891415,0.14232,104990.0,104970.0,0.0247]
[1748592892299,0.14232,104990.0,104970.0,0.0021]
[1748592896151,0.0422,104990.0,104970.0,0.0021]
[1748592896389,0.0211,104990.0,104970.0,0.046]
[1748592896574,0.2276592,105000.0,104970.0,0.046]
[1748592896793,0.34001315,105000.0,104970.0,0.046]
[1748592897184,0.0429,104990.0,104970.0,0.0021]
[1748592897853,0.0429,104990.0,104970.0,0.0001]
[1748592898082,0.0429,104990.0,104970.0,0.0021]
[1748592898286,0.0429,104990.0,104970.0,0.0011]
[1748592898491,0.0429,104990.0,104970.0,0.0001]
[1748592898705,0.29601315,105000.0,104970.0,0.0448]
[1748592898902,0.34111315,105000.0,104970.0,0.0458]
[1748592899661,0.34111315,105000.0,104970.0,0.0448]
[1748592900313,0.34111315,105000.0,104970.0,0.0438]
[1748592900727,0.24099315,105000.0,104970.0,0.0438]
[1748592900935,0.34111315,105000.0,104970.0,0.0448]
[1748592901178,0.34111315,105000.0,104970.0,0.0458]
[1748592901409,0.0214,104990.0,104970.0,0.0458]
[1748592901620,0.0425,104990.0,104970.0,0.3429]
[1748592902289,0.0214,104990.0,104970.0,0.3419]
[1748592902720,0.16474095,105000.0,104970.0,0.3429]
[1748592902960,0.26486095,105000.0,104970.0,0.3429]
[1748592903182,0.26486095,105000.0,104980.0,0.022]
[1748592904255,0.26486095,105000.0,104970.0,0.3405]